[Event "Early-Titled-Tuesday-Blitz-April-23-2024"]
[Site "Chess.com"]
[Date "2024.04.23"]
[Round "1"]
[White "Jojo_898"]
[Black "The_Sherman_Variation"]
[Result "1-0"]
[WhiteElo "2434"]
[BlackElo "2721"]
[TimeControl "180+1"]
[EndTime "8:08:36 PDT"]
[Termination "Jojo_898 won by resignation"]

1. e4 {[%clk 0:03:00.9]} 1... d5 {[%clk 0:02:55.8]} 2. exd5 {[%clk 0:03:00.2]}
2... Qxd5 {[%clk 0:02:56.7]} 3. Nc3 {[%clk 0:03:00.1]} 3... Qa5 {[%clk
0:02:56.8]} 4. d4 {[%clk 0:02:58.9]} 4... c6 {[%clk 0:02:56.3]} 5. h3 {[%clk
0:02:58.3]} 5... Nf6 {[%clk 0:02:56.6]} 6. Nf3 {[%clk 0:02:58.2]} 6... Bf5
{[%clk 0:02:56.4]} 7. Bd3 {[%clk 0:02:56.8]} 7... Bxd3 {[%clk 0:02:55.8]} 8.
Qxd3 {[%clk 0:02:57.5]} 8... e6 {[%clk 0:02:55.9]} 9. Bd2 {[%clk 0:02:52]} 9...
Qc7 {[%clk 0:02:54.8]} 10. O-O {[%clk 0:02:50.6]} 10... Be7 {[%clk 0:02:52.3]}
11. Ne4 {[%clk 0:02:44.4]} 11... Nbd7 {[%clk 0:02:50.3]} 12. c4 {[%clk
0:02:07.2]} 12... h6 {[%clk 0:02:45.8]} 13. Rac1 {[%clk 0:01:58.3]} 13... O-O
{[%clk 0:02:44.1]} 14. Rfd1 {[%clk 0:01:42]} 14... Nxe4 {[%clk 0:02:35.9]} 15.
Qxe4 {[%clk 0:01:41.6]} 15... Nf6 {[%clk 0:02:36.4]} 16. Qf4 {[%clk 0:01:41.5]}
16... Bd6 {[%clk 0:02:31.3]} 17. Qh4 {[%clk 0:01:41.6]} 17... Be7 {[%clk
0:02:21.7]} 18. Qf4 {[%clk 0:01:40.5]} 18... Qb6 {[%clk 0:02:16]} 19. b3 {[%clk
0:01:34.8]} 19... Rad8 {[%clk 0:02:12.4]} 20. Be3 {[%clk 0:01:28.2]} 20... Qa5
{[%clk 0:02:10.8]} 21. Rc2 {[%clk 0:01:21.4]} 21... c5 {[%clk 0:02:05.3]} 22.
Qg3 {[%clk 0:01:16.4]} 22... Ne4 {[%clk 0:01:50.7]} 23. Qf4 {[%clk 0:01:09]}
23... cxd4 {[%clk 0:01:41.4]} 24. Bxd4 {[%clk 0:01:02.6]} 24... Ng5 {[%clk
0:01:29.2]} 25. Rcd2 {[%clk 0:00:53.9]} 25... Nxf3+ {[%clk 0:01:17.9]} 26. Qxf3
{[%clk 0:00:53.1]} 26... Bg5 {[%clk 0:01:17.4]} 27. Rd3 {[%clk 0:00:36.2]} 27...
b6 {[%clk 0:01:11.4]} 28. Qg3 {[%clk 0:00:34.3]} 28... Kh7 {[%clk 0:00:53.7]}
29. h4 {[%clk 0:00:29.6]} 29... Rxd4 {[%clk 0:00:50.2]} 30. Rxd4 {[%clk
0:00:26.3]} 30... Bf6 {[%clk 0:00:50.8]} 31. Qd3+ {[%clk 0:00:22.9]} 31... g6
{[%clk 0:00:50.4]} 32. Rf4 {[%clk 0:00:22.8]} 32... Kg7 {[%clk 0:00:50]} 33. Qf3
{[%clk 0:00:22.8]} 33... Be5 {[%clk 0:00:47]} 34. Re4 {[%clk 0:00:22.5]} 34...
h5 {[%clk 0:00:43.8]} 35. g3 {[%clk 0:00:22.4]} 35... Bf6 {[%clk 0:00:43.4]} 36.
Rd7 {[%clk 0:00:21.5]} 36... e5 {[%clk 0:00:23]} 37. Re2 {[%clk 0:00:17.3]}
37... a6 {[%clk 0:00:19]} 38. Qc6 {[%clk 0:00:16.7]} 38... Rd8 {[%clk
0:00:14.4]} 39. Rxd8 {[%clk 0:00:15.8]} 39... Bxd8 {[%clk 0:00:15.3]} 40. Qd5
{[%clk 0:00:15.3]} 40... Qxd5 {[%clk 0:00:12.7]} 41. cxd5 {[%clk 0:00:16.2]}
41... f6 {[%clk 0:00:13.3]} 42. Kg2 {[%clk 0:00:16.4]} 42... Kf7 {[%clk
0:00:13.7]} 43. Kf3 {[%clk 0:00:16.8]} 43... Ke7 {[%clk 0:00:14.3]} 44. Rc2
{[%clk 0:00:16.4]} 44... Kd6 {[%clk 0:00:13.9]} 45. Rd2 {[%clk 0:00:16.5]} 45...
f5 {[%clk 0:00:14.1]} 46. Ke2 {[%clk 0:00:15.9]} 46... b5 {[%clk 0:00:12.3]} 47.
Rd3 {[%clk 0:00:16.4]} 47... Bb6 {[%clk 0:00:12.7]} 48. f3 {[%clk 0:00:16.1]}
48... Bd4 {[%clk 0:00:13.3]} 49. f4 {[%clk 0:00:15.2]} 49... Kxd5 {[%clk
0:00:13.8]} 50. fxe5 {[%clk 0:00:15.8]} 50... Kxe5 {[%clk 0:00:14.6]} 51. Kf3
{[%clk 0:00:16.5]} 51... Kd5 {[%clk 0:00:14]} 52. Rd1 {[%clk 0:00:17.1]} 52...
a5 {[%clk 0:00:14.4]} 53. Rc1 {[%clk 0:00:17.7]} 53... b4 {[%clk 0:00:13.3]} 54.
Rc8 {[%clk 0:00:17.5]} 54... Ke6 {[%clk 0:00:10.7]} 55. Ra8 {[%clk 0:00:17.2]}
55... Bc3 {[%clk 0:00:11]} 56. Ra6+ {[%clk 0:00:16.7]} 56... Kf7 {[%clk
0:00:11.4]} 57. Rxa5 {[%clk 0:00:17.2]} 57... Kf6 {[%clk 0:00:12]} 58. Ra6+
{[%clk 0:00:17.2]} 58... Kg7 {[%clk 0:00:12.4]} 59. Rb6 {[%clk 0:00:17.6]} 59...
Kh6 {[%clk 0:00:12.2]} 60. Kf4 {[%clk 0:00:17.3]} 60... Bd2+ {[%clk 0:00:11.6]}
61. Kf3 {[%clk 0:00:17.8]} 61... Bc3 {[%clk 0:00:12.1]} 62. Ra6 {[%clk
0:00:18.3]} 62... Kg7 {[%clk 0:00:12.2]} 63. a4 {[%clk 0:00:18.9]} 63... bxa3
{[%clk 0:00:11.8]} 64. Rxa3 {[%clk 0:00:19.6]} 64... Kf6 {[%clk 0:00:12.3]} 65.
Ra6+ {[%clk 0:00:20.3]} 65... Kf7 {[%clk 0:00:12.3]} 66. Rb6 {[%clk 0:00:20.8]}
66... Bd4 {[%clk 0:00:12.2]} 67. Rb7+ {[%clk 0:00:20.7]} 67... Kf6 {[%clk
0:00:12.7]} 68. b4 {[%clk 0:00:21.6]} 68... Ke5 {[%clk 0:00:12.9]} 69. b5 {[%clk
0:00:22.2]} 69... Kd5 {[%clk 0:00:12.9]} 70. Rc7 {[%clk 0:00:22.3]} 70... Ke6
{[%clk 0:00:09.1]} 71. Rc6+ {[%clk 0:00:22.7]} 71... Kf7 {[%clk 0:00:09.8]} 72.
b6 {[%clk 0:00:23.2]} 72... Ke7 {[%clk 0:00:09.9]} 73. b7 {[%clk 0:00:23.9]}
73... Ba7 {[%clk 0:00:10.1]} 74. Rc8 {[%clk 0:00:24.1]} 74... Kd7 {[%clk
0:00:10.4]} 75. b8=Q {[%clk 0:00:24.5]} 75... Bxb8 {[%clk 0:00:11]} 76. Rxb8
{[%clk 0:00:25.4]} 1-0

[Event "Early-Titled-Tuesday-Blitz-April-23-2024"]
[Site "Chess.com"]
[Date "2024.04.23"]
[Round "1"]
[White "FaustinoOro"]
[Black "Tejas_Rama"]
[Result "1-0"]
[WhiteElo "2921"]
[BlackElo "2521"]
[TimeControl "180+1"]
[EndTime "8:08:37 PDT"]
[Termination "FaustinoOro won by resignation"]

1. e4 {[%clk 0:03:00.9]} 1... e5 {[%clk 0:02:59.5]} 2. Nf3 {[%clk 0:03:01]} 2...
Nc6 {[%clk 0:03:00]} 3. Bc4 {[%clk 0:03:01.3]} 3... Bc5 {[%clk 0:02:59.8]} 4.
O-O {[%clk 0:03:00.9]} 4... Nf6 {[%clk 0:03:00.1]} 5. d3 {[%clk 0:03:01.2]} 5...
O-O {[%clk 0:02:59.8]} 6. c3 {[%clk 0:02:58.2]} 6... d5 {[%clk 0:02:59.4]} 7.
exd5 {[%clk 0:02:55.9]} 7... Nxd5 {[%clk 0:03:00.3]} 8. Nbd2 {[%clk 0:02:48.3]}
8... Bf5 {[%clk 0:02:16.2]} 9. Ne4 {[%clk 0:02:40.1]} 9... Be7 {[%clk
0:02:13.2]} 10. Re1 {[%clk 0:02:34.4]} 10... Nb6 {[%clk 0:02:00.3]} 11. Bb5
{[%clk 0:02:07.8]} 11... f6 {[%clk 0:02:00.6]} 12. Ng3 {[%clk 0:02:02.2]} 12...
Bd7 {[%clk 0:01:27.3]} 13. d4 {[%clk 0:01:32.3]} 13... exd4 {[%clk 0:01:22.3]}
14. cxd4 {[%clk 0:01:32.9]} 14... Bd6 {[%clk 0:01:10.7]} 15. Ne4 {[%clk
0:01:26.8]} 15... Bg4 {[%clk 0:01:07.4]} 16. Be3 {[%clk 0:01:10.2]} 16... Ne7
{[%clk 0:01:03.2]} 17. Nc5 {[%clk 0:01:01.9]} 17... Qc8 {[%clk 0:00:57.8]} 18.
Qb3+ {[%clk 0:00:55.5]} 18... Ned5 {[%clk 0:00:48.8]} 19. Nd2 {[%clk 0:00:52]}
19... c6 {[%clk 0:00:48.5]} 20. Bf1 {[%clk 0:00:50.9]} 20... Qc7 {[%clk
0:00:45.1]} 21. h3 {[%clk 0:00:50]} 21... Bf5 {[%clk 0:00:44.8]} 22. Nc4 {[%clk
0:00:41.2]} 22... Bxc5 {[%clk 0:00:32.3]} 23. dxc5 {[%clk 0:00:38.7]} 23... Nxc4
{[%clk 0:00:32.9]} 24. Bxc4 {[%clk 0:00:38.6]} 24... Be6 {[%clk 0:00:33.6]} 25.
Rad1 {[%clk 0:00:35.6]} 25... Rfe8 {[%clk 0:00:33.7]} 26. Bd2 {[%clk 0:00:32.1]}
26... Bf7 {[%clk 0:00:33.3]} 27. Qf3 {[%clk 0:00:31.1]} 27... Kh8 {[%clk
0:00:29.7]} 28. b4 {[%clk 0:00:29.1]} 28... a6 {[%clk 0:00:28.2]} 29. a4 {[%clk
0:00:28]} 29... Rxe1+ {[%clk 0:00:28.2]} 30. Rxe1 {[%clk 0:00:27.1]} 30... Rd8
{[%clk 0:00:28.2]} 31. Qb3 {[%clk 0:00:23.7]} 31... Kg8 {[%clk 0:00:26]} 32. Qb2
{[%clk 0:00:19.3]} 32... Qd7 {[%clk 0:00:20.6]} 33. Bf1 {[%clk 0:00:17.8]} 33...
Re8 {[%clk 0:00:20.7]} 34. Rd1 {[%clk 0:00:17.5]} 34... Re4 {[%clk 0:00:20]} 35.
Bd3 {[%clk 0:00:13.2]} 35... Re8 {[%clk 0:00:17.8]} 36. b5 {[%clk 0:00:13.2]}
36... axb5 {[%clk 0:00:18]} 37. axb5 {[%clk 0:00:13.6]} 37... Bg6 {[%clk
0:00:18.6]} 38. Bf1 {[%clk 0:00:13.2]} 38... Qe6 {[%clk 0:00:16.3]} 39. Re1
{[%clk 0:00:12.9]} 39... Qd7 {[%clk 0:00:16.6]} 40. Ra1 {[%clk 0:00:13.3]} 40...
Rc8 {[%clk 0:00:16.4]} 41. Qd4 {[%clk 0:00:13.2]} 41... Qf5 {[%clk 0:00:15.5]}
42. bxc6 {[%clk 0:00:12.1]} 42... bxc6 {[%clk 0:00:16.4]} 43. Ra6 {[%clk
0:00:12.2]} 43... Qe4 {[%clk 0:00:14.6]} 44. Qb2 {[%clk 0:00:09.6]} 44... Kf7
{[%clk 0:00:14.4]} 45. Qb7+ {[%clk 0:00:09.2]} 45... Rc7 {[%clk 0:00:14.9]} 46.
Qb8 {[%clk 0:00:09.9]} 46... Qe8 {[%clk 0:00:14.7]} 47. Qb3 {[%clk 0:00:08.3]}
47... Bf5 {[%clk 0:00:13.9]} 48. Bc4 {[%clk 0:00:08.7]} 48... Be6 {[%clk
0:00:14.4]} 49. Ba5 {[%clk 0:00:07.1]} 49... Rc8 {[%clk 0:00:13.8]} 50. Ra7+
{[%clk 0:00:07.6]} 50... Kg8 {[%clk 0:00:14.1]} 51. Qg3 {[%clk 0:00:08.3]} 51...
Qg6 {[%clk 0:00:14.3]} 52. Qd6 {[%clk 0:00:08.5]} 52... Qb1+ {[%clk 0:00:14]}
53. Kh2 {[%clk 0:00:08.3]} 53... Qb8 {[%clk 0:00:14.7]} 54. Qxb8 {[%clk
0:00:04.6]} 54... Rxb8 {[%clk 0:00:15.6]} 55. Ra6 {[%clk 0:00:04.9]} 55... Rc8
{[%clk 0:00:15.6]} 56. Bb3 {[%clk 0:00:05.5]} 56... Kf7 {[%clk 0:00:15.7]} 57.
Ba4 {[%clk 0:00:05.8]} 57... Bd7 {[%clk 0:00:14.9]} 58. Ra7 {[%clk 0:00:06.5]}
58... Ke6 {[%clk 0:00:15.6]} 59. Bc2 {[%clk 0:00:07.1]} 59... g6 {[%clk
0:00:15.5]} 60. g4 {[%clk 0:00:07.3]} 60... Rb8 {[%clk 0:00:14.2]} 61. Ra6
{[%clk 0:00:06.2]} 61... Rb2 {[%clk 0:00:13.6]} 62. Ba4 {[%clk 0:00:05.6]} 62...
Rxf2+ {[%clk 0:00:13.9]} 63. Kg3 {[%clk 0:00:06.3]} 63... Rb2 {[%clk 0:00:10.9]}
64. Bxc6 {[%clk 0:00:06.7]} 64... Bxc6 {[%clk 0:00:10.1]} 65. Rxc6+ {[%clk
0:00:07.6]} 65... Ke5 {[%clk 0:00:11]} 66. Rc8 {[%clk 0:00:06.8]} 66... Rb3+
{[%clk 0:00:11.5]} 67. Kf2 {[%clk 0:00:07]} 67... Kf4 {[%clk 0:00:11.2]} 68.
Bd2+ {[%clk 0:00:05.6]} 68... Ke4 {[%clk 0:00:11.9]} 69. c6 {[%clk 0:00:06.3]}
69... Kd3 {[%clk 0:00:12.2]} 70. Rd8 {[%clk 0:00:05.1]} 70... Ke4 {[%clk
0:00:08]} 71. Rxd5 {[%clk 0:00:03]} 71... Kxd5 {[%clk 0:00:08]} 72. c7 {[%clk
0:00:03.6]} 1-0

[Event "Early-Titled-Tuesday-Blitz-April-23-2024"]
[Site "Chess.com"]
[Date "2024.04.23"]
[Round "1"]
[White "aanshnerurkar"]
[Black "Witik"]
[Result "1/2-1/2"]
[WhiteElo "2461"]
[BlackElo "2763"]
[TimeControl "180+1"]
[EndTime "8:08:40 PDT"]
[Termination "Game drawn by repetition"]

1. e4 {[%clk 0:02:59.2]} 1... c6 {[%clk 0:02:59.8]} 2. d4 {[%clk 0:02:58.7]}
2... d5 {[%clk 0:03:00.5]} 3. e5 {[%clk 0:02:58.5]} 3... c5 {[%clk 0:03:00]} 4.
dxc5 {[%clk 0:02:58.8]} 4... e6 {[%clk 0:03:00.1]} 5. Be3 {[%clk 0:02:56.1]}
5... Nd7 {[%clk 0:02:58.3]} 6. Bb5 {[%clk 0:02:44.3]} 6... Nh6 {[%clk
0:02:45.2]} 7. f4 {[%clk 0:02:14.1]} 7... Qa5+ {[%clk 0:02:27.3]} 8. Nc3 {[%clk
0:02:12.7]} 8... a6 {[%clk 0:02:23.1]} 9. Bxd7+ {[%clk 0:02:02.9]} 9... Bxd7
{[%clk 0:02:24]} 10. a3 {[%clk 0:02:00.1]} 10... Qc7 {[%clk 0:02:15.8]} 11. Nge2
{[%clk 0:01:42.2]} 11... Nf5 {[%clk 0:02:07.6]} 12. Bf2 {[%clk 0:01:39]} 12...
Bxc5 {[%clk 0:02:07]} 13. Nd4 {[%clk 0:01:36.1]} 13... Qb6 {[%clk 0:01:54.7]}
14. Nce2 {[%clk 0:01:35.8]} 14... Bb5 {[%clk 0:01:45.7]} 15. b4 {[%clk
0:00:55.8]} 15... Bxd4 {[%clk 0:01:01.3]} 16. Nxd4 {[%clk 0:00:55.3]} 16... Nxd4
{[%clk 0:01:00.9]} 17. Bxd4 {[%clk 0:00:50.1]} 17... Qc6 {[%clk 0:01:00.9]} 18.
c3 {[%clk 0:00:47.9]} 18... O-O {[%clk 0:00:58.5]} 19. Kf2 {[%clk 0:00:47.7]}
19... Ba4 {[%clk 0:00:28]} 20. Qd2 {[%clk 0:00:44.3]} 20... a5 {[%clk
0:00:24.4]} 21. g4 {[%clk 0:00:36.7]} 21... Bb5 {[%clk 0:00:16.7]} 22. Kg3
{[%clk 0:00:30.8]} 22... Rfc8 {[%clk 0:00:14.1]} 23. f5 {[%clk 0:00:30.2]} 23...
exf5 {[%clk 0:00:14.5]} 24. gxf5 {[%clk 0:00:29.8]} 24... axb4 {[%clk
0:00:15.1]} 25. axb4 {[%clk 0:00:27.9]} 25... Rxa1 {[%clk 0:00:13.8]} 26. Rxa1
{[%clk 0:00:26.8]} 26... h6 {[%clk 0:00:12]} 27. Qe3 {[%clk 0:00:17]} 27... Qc4
{[%clk 0:00:12]} 28. Rd1 {[%clk 0:00:10.7]} 28... Re8 {[%clk 0:00:11.9]} 29. e6
{[%clk 0:00:09.8]} 29... Qc7+ {[%clk 0:00:08.5]} 30. Be5 {[%clk 0:00:09.5]}
30... Qe7 {[%clk 0:00:09.1]} 31. Qf4 {[%clk 0:00:06.3]} 31... fxe6 {[%clk
0:00:08.1]} 32. f6 {[%clk 0:00:06.7]} 32... gxf6 {[%clk 0:00:03.4]} 33. Bxf6
{[%clk 0:00:06.9]} 33... Qf7 {[%clk 0:00:04.1]} 34. Kh4 {[%clk 0:00:05.7]} 34...
Kh7 {[%clk 0:00:04.2]} 35. Rg1 {[%clk 0:00:04.9]} 35... Rg8 {[%clk 0:00:04.8]}
36. Rxg8 {[%clk 0:00:05]} 36... Qxg8 {[%clk 0:00:05.3]} 37. Qc7+ {[%clk
0:00:05.1]} 37... Kg6 {[%clk 0:00:05.2]} 38. Be5 {[%clk 0:00:04.4]} 38... Qf7
{[%clk 0:00:05.2]} 39. Qxf7+ {[%clk 0:00:04.2]} 39... Kxf7 {[%clk 0:00:05.2]}
40. Kh5 {[%clk 0:00:04.7]} 40... Bd3 {[%clk 0:00:03.1]} 41. Kxh6 {[%clk
0:00:05]} 41... b5 {[%clk 0:00:03.5]} 42. h4 {[%clk 0:00:04.1]} 42... Bf5 {[%clk
0:00:03.8]} 43. h5 {[%clk 0:00:04.4]} 43... Be4 {[%clk 0:00:04.2]} 44. Kg5
{[%clk 0:00:04.8]} 44... Bf3 {[%clk 0:00:04.7]} 45. h6 {[%clk 0:00:04.3]} 45...
Be4 {[%clk 0:00:04.9]} 46. Bd4 {[%clk 0:00:04.5]} 46... Bd3 {[%clk 0:00:04.1]}
47. Kf4 {[%clk 0:00:04.5]} 47... Kg6 {[%clk 0:00:04.5]} 48. Bg7 {[%clk
0:00:04.7]} 48... Bf5 {[%clk 0:00:04.5]} 49. Ke5 {[%clk 0:00:02.1]} 49... Kh7
{[%clk 0:00:05.2]} 50. Kd6 {[%clk 0:00:01.7]} 50... Kg6 {[%clk 0:00:05.8]} 51.
Kc6 {[%clk 0:00:01.4]} 51... Bd3 {[%clk 0:00:06.4]} 52. Kd6 {[%clk 0:00:01.6]}
52... Bf5 {[%clk 0:00:05]} 53. Ke7 {[%clk 0:00:01.5]} 53... Kh7 {[%clk
0:00:05.3]} 54. Kf6 {[%clk 0:00:01.5]} 54... Bg4 {[%clk 0:00:04.9]} 55. Ke5
{[%clk 0:00:01.2]} 55... Bf5 {[%clk 0:00:05.1]} 56. Kd6 {[%clk 0:00:01.6]} 56...
Bg4 {[%clk 0:00:05.2]} 57. Kc5 {[%clk 0:00:01.9]} 57... Be2 {[%clk 0:00:04.9]}
58. Kd4 {[%clk 0:00:02.3]} 58... Bg4 {[%clk 0:00:04.5]} 59. Ke5 {[%clk
0:00:02.7]} 59... Bf5 {[%clk 0:00:05.1]} 1/2-1/2

[Event "Early-Titled-Tuesday-Blitz-April-23-2024"]
[Site "Chess.com"]
[Date "2024.04.23"]
[Round "1"]
[White "sergoy"]
[Black "Happy1712Drummer"]
[Result "1-0"]
[WhiteElo "2926"]
[BlackElo "2524"]
[TimeControl "180+1"]
[EndTime "8:08:50 PDT"]
[Termination "sergoy won on time"]

1. d4 {[%clk 0:03:00.9]} 1... d5 {[%clk 0:02:59.8]} 2. c4 {[%clk 0:03:01.3]}
2... e6 {[%clk 0:03:00.2]} 3. Nf3 {[%clk 0:03:02]} 3... a6 {[%clk 0:03:00.2]} 4.
cxd5 {[%clk 0:02:59.7]} 4... exd5 {[%clk 0:03:00]} 5. Nc3 {[%clk 0:03:00.4]}
5... Nf6 {[%clk 0:02:59.6]} 6. Bg5 {[%clk 0:03:00.9]} 6... Be6 {[%clk
0:02:59.9]} 7. Qb3 {[%clk 0:03:00.8]} 7... Ra7 {[%clk 0:02:46.4]} 8. e3 {[%clk
0:03:00.6]} 8... Nbd7 {[%clk 0:02:39]} 9. Qc2 {[%clk 0:02:59.5]} 9... Bd6 {[%clk
0:02:32.4]} 10. Bd3 {[%clk 0:02:58.6]} 10... c6 {[%clk 0:02:32.5]} 11. O-O
{[%clk 0:02:50.9]} 11... h6 {[%clk 0:02:23.4]} 12. Bf4 {[%clk 0:02:48.2]} 12...
Qc7 {[%clk 0:02:16]} 13. Bxd6 {[%clk 0:02:45.9]} 13... Qxd6 {[%clk 0:02:16.9]}
14. Na4 {[%clk 0:02:43.1]} 14... O-O {[%clk 0:02:15.3]} 15. Nc5 {[%clk
0:02:43.5]} 15... Rc8 {[%clk 0:01:37.2]} 16. h3 {[%clk 0:02:42.8]} 16... a5
{[%clk 0:01:35]} 17. a3 {[%clk 0:02:41.7]} 17... b6 {[%clk 0:01:31.4]} 18. Nxd7
{[%clk 0:02:38]} 18... Nxd7 {[%clk 0:01:30.2]} 19. Rac1 {[%clk 0:02:34]} 19...
Rac7 {[%clk 0:01:30.2]} 20. Qd2 {[%clk 0:02:20.5]} 20... c5 {[%clk 0:01:29.2]}
21. Bb5 {[%clk 0:02:16.8]} 21... c4 {[%clk 0:01:26]} 22. Rfe1 {[%clk 0:02:02.9]}
22... Nf6 {[%clk 0:01:26]} 23. Qc2 {[%clk 0:01:25.2]} 23... Ne4 {[%clk
0:01:22.9]} 24. Nd2 {[%clk 0:01:22.2]} 24... Bf5 {[%clk 0:01:22.5]} 25. Nxe4
{[%clk 0:01:22.5]} 25... Bxe4 {[%clk 0:01:23]} 26. Qd2 {[%clk 0:01:22.1]} 26...
Qg6 {[%clk 0:01:18.7]} 27. f4 {[%clk 0:01:15.6]} 27... h5 {[%clk 0:01:15.6]} 28.
Ba4 {[%clk 0:01:13.9]} 28... Rb8 {[%clk 0:01:13.5]} 29. Bd1 {[%clk 0:01:13.6]}
29... b5 {[%clk 0:01:12.4]} 30. Qf2 {[%clk 0:00:55.1]} 30... b4 {[%clk
0:01:09.6]} 31. axb4 {[%clk 0:00:56]} 31... axb4 {[%clk 0:01:10.5]} 32. Bf3
{[%clk 0:00:54]} 32... c3 {[%clk 0:01:04.7]} 33. bxc3 {[%clk 0:00:46.3]} 33...
bxc3 {[%clk 0:01:05.6]} 34. Bxe4 {[%clk 0:00:46.8]} 34... Qxe4 {[%clk
0:01:06.5]} 35. Re2 {[%clk 0:00:47.3]} 35... Re8 {[%clk 0:00:59.4]} 36. Kh2
{[%clk 0:00:45.5]} 36... Rc4 {[%clk 0:00:57.1]} 37. Qh4 {[%clk 0:00:32.6]} 37...
g6 {[%clk 0:00:52.9]} 38. Qf2 {[%clk 0:00:31.6]} 38... Kg7 {[%clk 0:00:47.9]}
39. Rcc2 {[%clk 0:00:31.6]} 39... Rec8 {[%clk 0:00:40.6]} 40. Qg3 {[%clk
0:00:30.6]} 40... Rb8 {[%clk 0:00:39.2]} 41. Rf2 {[%clk 0:00:27.8]} 41... Re8
{[%clk 0:00:35]} 42. Rfe2 {[%clk 0:00:19.7]} 42... Rb8 {[%clk 0:00:35.1]} 43. f5
{[%clk 0:00:19.3]} 43... Re8 {[%clk 0:00:28.4]} 44. fxg6 {[%clk 0:00:19.8]}
44... fxg6 {[%clk 0:00:28.2]} 45. Qg5 {[%clk 0:00:20]} 45... Rc7 {[%clk
0:00:19.5]} 46. Qg3 {[%clk 0:00:17.8]} 46... Rc4 {[%clk 0:00:19.3]} 47. Qg5
{[%clk 0:00:18.1]} 47... Rc7 {[%clk 0:00:19.5]} 48. Rf2 {[%clk 0:00:13.8]} 48...
Qxe3 {[%clk 0:00:16.5]} 49. Qxd5 {[%clk 0:00:14.3]} 49... Rce7 {[%clk
0:00:11.1]} 50. Qd6 {[%clk 0:00:13.4]} 50... Kh7 {[%clk 0:00:05.4]} 51. Rf3
{[%clk 0:00:11.2]} 51... Qe4 {[%clk 0:00:04.7]} 52. Rcxc3 {[%clk 0:00:11.2]}
52... Qe1 {[%clk 0:00:05]} 53. Qg3 {[%clk 0:00:10.4]} 53... Qe6 {[%clk
0:00:05.1]} 54. Rcd3 {[%clk 0:00:09.1]} 54... Rd8 {[%clk 0:00:05.4]} 55. Rfe3
{[%clk 0:00:09.1]} 55... Qf7 {[%clk 0:00:04.9]} 56. Rxe7 {[%clk 0:00:09.8]}
56... Qxe7 {[%clk 0:00:05.8]} 57. d5 {[%clk 0:00:10.6]} 57... Qd6 {[%clk
0:00:06.1]} 58. Qxd6 {[%clk 0:00:10.9]} 58... Rxd6 {[%clk 0:00:07]} 59. Kg3
{[%clk 0:00:11.7]} 59... Kg7 {[%clk 0:00:07.6]} 60. Kf4 {[%clk 0:00:12.3]} 60...
Kf6 {[%clk 0:00:08.5]} 61. Ke4 {[%clk 0:00:13.1]} 61... g5 {[%clk 0:00:09]} 62.
Rf3+ {[%clk 0:00:13.4]} 62... Kg6 {[%clk 0:00:08.9]} 63. Ke5 {[%clk 0:00:13.9]}
63... Rd8 {[%clk 0:00:07]} 64. d6 {[%clk 0:00:14.5]} 64... g4 {[%clk 0:00:07.4]}
65. hxg4 {[%clk 0:00:14.6]} 65... hxg4 {[%clk 0:00:08.3]} 66. Rf1 {[%clk
0:00:14.8]} 66... Kg5 {[%clk 0:00:08.3]} 67. Ke6 {[%clk 0:00:15]} 67... Kh4
{[%clk 0:00:07.6]} 68. Rf2 {[%clk 0:00:13.7]} 68... Kg3 {[%clk 0:00:07.6]} 69.
Rd2 {[%clk 0:00:14.4]} 69... Kf4 {[%clk 0:00:05]} 70. d7 {[%clk 0:00:13.8]}
70... Ke3 {[%clk 0:00:04.6]} 71. Ra2 {[%clk 0:00:13.6]} 71... Rh8 {[%clk
0:00:04.2]} 72. Kd6 {[%clk 0:00:10.3]} 72... g3 {[%clk 0:00:02.8]} 73. Kc7
{[%clk 0:00:10.8]} 73... Rh7 {[%clk 0:00:02.3]} 74. Kc8 {[%clk 0:00:11.5]} 1-0